bitfinex/quotes_SOLUSD_20220210
["timestamp","ask_amount","ask_price","bid_price","bid_amount"]
[1644495384544,13.1455,114.18,114.12,39.3585979]
[1644495384742,4.38,114.2,114.12,39.3585979]
[1644495384945,22.8303,114.19,114.13,0.024]
[1644495385546,35.0588809,114.18,114.13,0.024]
[1644495385746,39.4388809,114.18,114.12,48.3740979]
[1644495385947,39.4388809,114.18,114.12,13.3935]
[1644495386149,39.4388809,114.18,114.12,0.25]
[1644495386348,39.4388809,114.18,114.11,0.024]
[1644495386947,39.4388809,114.18,114.11,39.26261455]
[1644495387147,39.4388809,114.18,114.12,0.024]
[1644495387349,35.0588809,114.18,114.12,0.024]
[1644495387550,48.2036809,114.18,114.12,0.024]
[1644495388448,52.5836809,114.18,114.12,0.024]
[1644495388651,39.4388809,114.18,114.12,0.024]
[1644495388848,39.4388809,114.18,114.12,13.1675]
[1644495389048,39.4388809,114.18,114.13,42.29862264]
[1644495389449,39.4388809,114.18,114.12,13.1675]
[1644495389649,35.0588809,114.18,114.12,13.4175]
[1644495390549,35.0588809,114.18,114.12,58.09319461]
[1644495392271,39.4388809,114.18,114.12,58.09319461]
[1644495393051,39.4388809,114.18,114.12,13.1675]
[1644495393260,52.5837809,114.18,114.12,0.024]
[1644495395254,52.5837809,114.18,114.11,0.024]
[1644495395453,23.1915,114.17,114.11,0.024]
[1644495395654,17.5278,114.16,114.11,0.024]
[1644495396055,42.2797098,114.15,114.11,0.024]
[1644495396456,42.2797098,114.15,114.09,67.79800729]
[1644495397056,55.4282098,114.15,114.09,23.9348]
[1644495397256,55.4282098,114.15,114.09,0.274]
[1644495397657,55.4282098,114.15,114.09,0.024]
[1644495401187,13.1531,114.13,114.09,0.024]
[1644495401390,4.381,114.12,114.05,0.024]
[1644495401786,29.17252154,114.14,114.05,0.024]
[1644495401986,22.5593,114.14,114.05,12.674]
[1644495402188,22.5593,114.14,114.06,0.024]
[1644495402390,22.5593,114.14,114.06,4.406]
[1644495402588,22.5593,114.14,114.07,23.2038]
[1644495402790,70.48666953,114.14,114.08,43.7748272]
[1644495402990,70.48666953,114.14,114.08,43.7988272]
[1644495403190,70.48666953,114.14,114.08,0.024]
[1644495403791,83.63666953,114.14,114.08,0.024]
[1644495404193,4.381,114.13,114.08,0.024]
[1644495404492,4.381,114.13,114.07,76.05575495]
[1644495404692,34.98730947,114.12,114.07,23.2038]
[1644495404892,34.98730947,114.12,114.07,23.4538]
[1644495405092,34.98730947,114.12,114.07,23.2038]
[1644495405293,34.98730947,114.12,114.07,0.024]
[1644495405495,4.382,114.11,114.07,0.024]
[1644495405694,4.382,114.11,114.05,57.7280697]
[1644495406293,35.49137141,114.1,114.05,57.4780697]
[1644495406694,35.49137141,114.1,114.05,57.4540697]
[1644495407994,39.87437141,114.1,114.05,57.4540697]
[1644495408294,39.87437141,114.1,114.05,12.65]
[1644495408494,39.87437141,114.1,114.03,25.8284]
[1644495408698,39.87437141,114.1,114.04,0.024]
[1644495408898,39.87437141,114.1,114.03,0.024]
[1644495409498,53.02847141,114.1,114.03,0.024]
[1644495409897,75.92847141,114.1,114.03,0.024]
[1644495410497,75.92847141,114.1,114.02,0.024]
[1644495417007,2.23122154,114.09,114.02,0.024]
[1644495417206,13.1602,114.07,114.0,0.024]
[1644495417407,4.384,114.06,114.0,0.024]
[1644495418107,42.95038909,114.05,114.0,0.024]
[1644495418711,56.11158909,114.05,114.0,0.024]
[1644495419314,4.385,114.04,114.0,0.024]
[1644495419512,4.385,114.04,113.98,24.2276]
[1644495420013,28.1144,114.04,113.98,24.2276]
[1644495420213,39.38601161,114.03,113.98,24.2276]
[1644495420817,39.38601161,114.03,113.98,70.74292364]
[1644495421016,39.38601161,114.03,113.98,24.2276]
[1644495421919,39.38601161,114.03,113.98,71.78049783]
[1644495423622,23.7294,114.04,113.98,71.78049783]
[1644495423821,28.1144,114.04,113.98,84.94059783]
[1644495424824,23.7294,114.04,113.98,84.94059783]
[1644495425724,37.0631001,114.03,113.98,84.94059783]
[1644495426139,37.0631001,114.03,113.98,23.9776]
[1644495426942,4.385,114.02,113.98,23.9776]
[1644495427140,4.385,114.02,113.98,23.9536]
[1644495427343,44.82602895,114.01,113.97,13.1852]
[1644495427543,44.82602895,114.01,113.94,20.24582817]
[1644495427544,44.82602895,114.01,113.95,23.9037]
[1644495428341,44.82602895,114.01,113.95,24.1537]
[1644495428544,44.82602895,114.01,113.95,37.0672]
[1644495429443,44.82602895,114.01,113.95,23.9037]
[1644495429841,44.82602895,114.01,113.96,47.25674705]
[1644495430040,44.82602895,114.01,113.96,47.28074705]
[1644495431344,13.1639,114.02,113.96,47.28074705]
[1644495432245,39.83940791,114.01,113.96,47.28074705]
[1644495432446,44.22540791,114.01,113.96,47.28074705]
[1644495432741,53.00410791,114.01,113.96,47.28074705]
[1644495433043,53.00410791,114.01,113.96,0.024]
[1644495433343,4.386,114.0,113.96,0.024]
[1644495433541,4.386,114.0,113.94,17.8247]
[1644495433742,53.00410791,114.01,113.94,17.8247]
[1644495433944,53.00410791,114.01,113.95,0.024]
[1644495434143,53.00410791,114.01,113.95,43.65319826]
[1644495434344,17.552,114.0,113.95,0.024]
[1644495434548,41.0617,114.0,113.94,4.41]
[1644495434745,41.0617,114.0,113.95,0.024]
[1644495434944,41.0617,114.0,113.94,0.024]
[1644495435345,43.07527109,113.99,113.94,41.68573332]
[1644495435545,4.386,113.98,113.94,41.68573332]
[1644495435745,13.1648,114.01,113.94,55.10093332]
[1644495435945,13.1648,114.01,113.95,24.7616]
[1644495436445,50.48417927,114.01,113.96,45.36142742]
[1644495436646,54.87017927,114.01,113.96,45.38542742]
[1644495437247,54.87017927,114.01,113.96,0.024]
[1644495437646,24.3971,114.0,113.96,0.024]
[1644495437847,37.5638,114.0,113.93,14.43429829]
[1644495438246,37.5638,114.0,113.94,44.70736851]
[1644495438548,24.3971,114.0,113.94,67.35706851]
[1644495438746,13.1648,114.01,113.94,80.77216851]
[1644495438945,22.7552,114.03,113.95,0.024]
[1644495438946,4.386,114.02,113.95,0.024]
[1644495439148,28.3008,114.02,113.95,0.024]
[1644495439749,63.55332776,114.02,113.95,0.024]
[1644495440849,76.71702776,114.02,113.95,13.1877]
[1644495441048,76.71702776,114.02,113.96,48.4212342]
[1644495441249,72.33102776,114.02,113.96,48.4212342]
[1644495441749,37.0785,114.02,113.96,48.4212342]
[1644495442450,4.386,114.01,113.96,48.4212342]
[1644495443550,37.0785,114.02,113.96,48.4212342]
[1644495444452,37.0785,114.02,113.96,61.5842342]
[1644495446354,37.0785,114.02,113.96,62.82833249]
[1644495447056,37.0785,114.02,113.96,49.66533249]
[1644495447358,37.0785,114.02,113.96,48.6712342]
[1644495447359,23.9148,114.02,113.96,48.6712342]
[1644495447557,23.9148,114.02,113.96,62.56533249]
[1644495447957,23.9148,114.02,113.96,62.31533249]
[1644495448156,62.97761484,114.02,113.96,49.66533249]
[1644495448359,4.386,114.01,113.96,48.4212342]
[1644495448563,17.5508,114.01,113.96,48.4212342]
[1644495448957,13.1648,114.01,113.96,48.4212342]
[1644495449158,62.97761484,114.02,113.96,48.4212342]
[1644495449962,76.14121484,114.02,113.96,48.4212342]
[1644495450158,76.14121484,114.02,113.96,0.024]
[1644495450159,2.23122154,114.01,113.96,0.024]
[1644495450359,4.386,114.0,113.96,0.024]
[1644495450559,4.386,114.0,113.94,23.91779829]
[1644495450760,4.386,114.0,113.95,0.024]
[1644495450958,4.386,114.0,113.94,23.91779829]
[1644495451159,41.9151533,113.99,113.94,22.6737]
[1644495451361,4.386,113.98,113.94,22.6737]
[1644495451760,55.0822533,113.99,113.94,22.6737]
[1644495452761,55.0822533,113.99,113.94,0.024]
[1644495452961,55.0822533,113.99,113.95,41.03209463]
[1644495453163,13.1671,113.99,113.95,41.03209463]
[1644495453662,13.1659,114.0,113.95,41.03209463]
[1644495454063,56.67990379,114.0,113.95,41.05609463]
[1644495454263,13.1659,114.0,113.95,41.05609463]
[1644495454863,4.386,113.99,113.95,41.05609463]
[1644495455066,4.386,113.99,113.95,41.03209463]
[1644495455264,17.5526,113.99,113.95,41.03209463]
[1644495455866,17.5526,113.99,113.94,0.024]
[1644495456166,37.3834,113.99,113.94,0.024]
[1644495457669,37.3834,113.99,113.94,47.31434984]
[1644495459793,4.386,113.98,113.94,47.31434984]
[1644495459968,4.386,113.98,113.94,47.29034984]
[1644495460367,17.5537,113.98,113.94,47.29034984]
[1644495465073,17.5537,113.98,113.93,0.024]
[1644495465275,17.5537,113.98,113.92,14.43579829]
[1644495465775,13.1677,113.98,113.92,14.43579829]
[1644495466174,13.1677,113.98,113.93,38.29242811]
[1644495466374,55.36398222,113.98,113.93,38.31642811]
[1644495467176,13.1677,113.98,113.93,38.31642811]
[1644495467404,17.5537,113.98,113.93,38.31642811]
[1644495468206,56.78505781,113.98,113.93,38.31642811]
[1644495468403,52.39905781,113.98,113.93,38.31642811]
[1644495469507,4.386,113.97,113.93,38.31642811]
[1644495469709,17.555,113.97,113.93,38.29242811]
[1644495469908,4.386,113.97,113.93,38.29242811]
[1644495470308,4.386,113.97,113.92,1.26809829]
[1644495470510,4.386,113.97,113.91,30.27999829]
[1644495470711,4.386,113.97,113.91,25.89399829]
[1644495471210,28.0251,113.97,113.91,25.89399829]
[1644495471411,37.25405903,113.96,113.91,25.89399829]
[1644495471609,4.388,113.95,113.91,24.6499]
[1644495471810,4.388,113.95,113.91,24.6259]
[1644495472011,37.25405903,113.96,113.91,24.6259]
[1644495472309,41.64205903,113.96,113.91,24.6259]
[1644495472510,54.81275903,113.96,113.9,0.024]
[1644495472710,54.81275903,113.96,113.89,0.024]
[1644495472911,57.04398057,113.96,113.89,0.024]
[1644495473213,69.69398057,113.96,113.85,0.024]
[1644495473509,69.69398057,113.96,113.88,0.024]
[1644495473710,69.69398057,113.96,113.85,0.024]
[1644495474411,99.9637326,113.96,113.85,0.024]
[1644495474611,99.9637326,113.96,113.83,0.024]
[1644495474810,109.33112167,113.96,113.83,0.024]
[1644495475310,109.33112167,113.96,113.83,44.10570657]
[1644495475512,109.33112167,113.96,113.84,0.024]
[1644495475714,197.37112167,113.96,113.84,0.024]
[1644495476311,122.72432167,113.96,113.84,0.024]
[1644495476912,282.03092877,113.96,113.82,0.024]
[1644495477112,158.07,113.93,113.82,0.024]
[1644495477315,13.1847,113.9,113.79,0.024]
[1644495477514,28.8078,113.89,113.79,0.024]
[1644495477715,69.06410224,113.89,113.79,39.07448773]
[1644495478815,13.1825,113.87,113.79,39.07448773]
[1644495479015,42.65837676,113.86,113.79,39.07448773]
[1644495479214,47.05037676,113.86,113.79,39.07448773]
[1644495479416,42.65837676,113.86,113.79,39.07448773]
[1644495479819,4.392,113.88,113.79,39.07448773]
[1644495480414,24.4168,113.89,113.79,52.25568773]
[1644495480616,24.4168,113.89,113.79,88.59058773]
[1644495480818,59.53772858,113.89,113.79,94.84058773]
[1644495481516,59.53772858,113.89,113.79,88.84058773]
[1644495481714,72.71802858,113.89,113.79,88.84058773]
[1644495481915,72.71802858,113.89,113.79,88.59058773]
[1644495482315,72.71802858,113.89,113.79,75.94058773]
[1644495482522,72.71802858,113.89,113.79,62.75938773]
[1644495482718,4.392,113.88,113.79,62.75938773]
[1644495482916,46.3376936,113.87,113.79,62.75938773]
[1644495483118,13.1832,113.86,113.79,62.75938773]
[1644495483320,36.5769854,113.85,113.79,0.024]
[1644495483518,36.5769854,113.85,113.77,12.674]
[1644495483717,36.5769854,113.85,113.78,0.024]
[1644495483918,4.393,113.84,113.78,0.024]
[1644495484318,41.06894586,113.83,113.78,0.024]
[1644495484518,41.06894586,113.83,113.77,35.22799569]
[1644495484718,41.06894586,113.83,113.77,0.024]
[1644495485721,54.25524586,113.83,113.77,0.024]
[1644495485923,4.393,113.82,113.77,0.024]
[1644495486219,4.393,113.82,113.76,58.26015449]
[1644495486619,41.06894586,113.83,113.76,58.26015449]
[1644495486822,13.1864,113.83,113.77,0.024]
[1644495487020,4.393,113.86,113.77,0.024]
[1644495487822,42.82749214,113.85,113.77,0.024]
[1644495488022,67.4697,113.87,113.77,0.024]
[1644495488023,34.32172533,113.83,113.77,0.024]
[1644495489126,47.50852533,113.83,113.77,0.024]
[1644495489327,4.393,113.82,113.77,0.024]
[1644495489527,39.83543596,113.81,113.76,81.12685449]
[1644495489728,4.394,113.8,113.76,81.12685449]
[1644495489927,66.4728,113.85,113.77,0.024]
[1644495489928,4.394,113.84,113.77,0.024]
[1644495490127,4.394,113.84,113.75,0.024]
[1644495490128,4.394,113.79,113.75,0.024]
[1644495490327,4.393,113.83,113.72,4.418]
[1644495490529,4.394,113.84,113.73,12.674]
[1644495490728,4.394,113.86,113.74,92.258]
[1644495491029,22.7133,113.88,113.75,46.8785165]
[1644495491030,45.5995697,113.85,113.75,46.8785165]
[1644495491226,45.5995697,113.85,113.77,40.74641268]
[1644495491430,22.7133,113.88,113.79,13.1801]
[1644495491628,27.1053,113.88,113.8,0.024]
[1644495492029,29.33652154,113.88,113.8,0.024]
[1644495492230,24.8639,113.87,113.8,0.024]
[1644495492431,39.4011778,113.86,113.8,36.83078962]
[1644495492630,39.4011778,113.86,113.81,0.024]
[1644495492830,24.0112,113.85,113.8,0.024]
[1644495493031,24.0112,113.85,113.77,0.024]
[1644495493231,4.393,113.84,113.77,0.024]
[1644495493637,45.44212074,113.84,113.77,42.86985532]
[1644495493837,45.44212074,113.84,113.78,0.024]
[1644495494440,24.0112,113.85,113.78,0.024]
[1644495494639,24.0112,113.85,113.77,0.024]
[1644495494640,4.393,113.84,113.77,0.024]
[1644495495440,39.63013868,113.83,113.77,35.07910279]
[1644495495638,4.393,113.82,113.78,0.024]
[1644495495838,39.63013868,113.83,113.77,35.07910279]
[1644495496038,4.393,113.82,113.77,35.07910279]
[1644495496739,36.5426788,113.81,113.77,0.024]
[1644495496942,4.394,113.8,113.77,0.024]
[1644495497240,6.06439994,113.79,113.76,24.5808]
[1644495497443,6.06439994,113.79,113.73,0.024]
[1644495497740,6.06439994,113.79,113.74,47.68231568]
[1644495497939,6.06439994,113.79,113.74,47.70631568]
[1644495498339,6.06439994,113.79,113.74,0.024]
[1644495498742,6.06439994,113.79,113.72,0.024]
[1644495499340,44.43303662,113.78,113.72,45.28783256]
[1644495499541,44.43303662,113.78,113.73,0.024]
[1644495499740,44.43303662,113.78,113.7,58.6526]
[1644495499741,4.394,113.77,113.72,0.024]
[1644495499939,44.43303662,113.78,113.72,0.024]
[1644495500840,4.394,113.77,113.72,0.024]
[1644495502058,44.43303662,113.78,113.72,0.024]
[1644495502462,57.62643662,113.78,113.72,0.024]
[1644495502862,4.394,113.77,113.72,0.024]
[1644495503062,57.62643662,113.78,113.72,0.024]
[1644495504068,4.394,113.77,113.7,0.024]
[1644495504263,41.9982,113.77,113.69,0.024]
[1644495504464,37.6042,113.77,113.69,0.024]
[1644495504664,35.69096354,113.76,113.69,34.30054514]
[1644495504864,40.08696354,113.76,113.7,0.024]
[1644495505063,4.396,113.79,113.7,0.024]
[1644495505368,4.396,113.79,113.7,28.0765]
[1644495505563,4.394,113.8,113.71,0.024]
[1644495505762,4.394,113.8,113.72,12.65]
[1644495505963,35.81526058,113.79,113.73,46.17505659]
[1644495506162,35.81526058,113.79,113.74,0.024]
[1644495507164,35.81526058,113.79,113.72,25.8388]
[1644495507366,4.394,113.78,113.71,12.65]
[1644495507565,35.81526058,113.79,113.7,46.6336]
[1644495507764,27.9092,113.82,113.7,46.6336]
[1644495507966,27.9092,113.82,113.71,1.96666512]
[1644495508167,84.5347,113.82,113.71,1.96666512]
[1644495508367,13.1921,113.79,113.7,46.6336]
[1644495508567,84.5347,113.82,113.71,6.36066512]
[1644495508568,23.5142,113.82,113.71,6.36066512]
[1644495508870,35.88416946,113.81,113.72,43.6946032]
[1644495509067,23.5142,113.82,113.73,17.044]
[1644495509266,4.394,113.84,113.73,38.42650565]
[1644495509467,17.5805,113.84,113.73,32.42650565]
[1644495509667,19.81172154,113.84,113.74,1.94580565]
[1644495509866,17.5805,113.84,113.75,12.65]
[1644495510068,4.394,113.84,113.76,45.34114352]
[1644495510267,98.2426,113.86,113.77,12.65]
[1644495510268,4.393,113.86,113.77,12.65]
[1644495510469,4.393,113.86,113.77,14.59580565]
[1644495510668,4.393,113.87,113.77,20.84580565]
[1644495510869,4.393,113.87,113.78,1.94580565]
[1644495511069,40.76146489,113.86,113.79,43.39516654]
[1644495511271,40.76146489,113.86,113.79,48.03716654]
[1644495511474,40.76146489,113.86,113.79,45.59097219]
[1644495512073,40.76146489,113.86,113.79,56.82526654]
[1644495512271,40.76146489,113.86,113.79,56.57526654]
[1644495512474,4.392,113.85,113.79,56.57526654]
[1644495513274,4.392,113.88,113.79,63.16307219]
[1644495513472,4.392,113.89,113.8,4.392]
[1644495513674,4.392,113.89,113.81,13.1777]
[1644495513873,4.391,113.9,113.81,15.12350565]
[1644495514076,40.8314425,113.89,113.82,47.80324815]
[1644495514374,4.391,113.88,113.8,37.5249]
[1644495514972,105.0,113.87,113.79,0.0099]
[1644495515176,28.392,113.86,113.74,1.24409829]
[1644495515374,28.392,113.86,113.67,143.72133462]
[1644495515375,30.62322154,113.86,113.72,1.24409829]
[1644495515575,1.2366071,113.84,113.69,1.24409829]
[1644495515776,13.1887,113.82,113.69,1.24409829]
[1644495515975,4.394,113.81,113.68,1.24409829]
[1644495516174,17.044,113.81,113.68,1.24409829]
[1644495516375,12.65,113.81,113.69,40.57934271]
[1644495516575,4.394,113.82,113.69,41.823441]
[1644495516778,17.5811,113.84,113.71,38.55575571]
[1644495517176,17.5811,113.84,113.73,35.82865468]
[1644495517373,125.1409,113.85,113.73,48.47865468]
[1644495517577,46.9909,113.85,113.75,39.65751363]
[1644495517774,46.9909,113.85,113.75,39.90751363]
[1644495517775,4.393,113.84,113.75,39.90751363]
[1644495517974,4.393,113.84,113.75,39.65751363]
[1644495518573,17.043,113.84,113.75,39.65751363]
[1644495518774,17.043,113.84,113.73,6.0]
[1644495518975,17.043,113.84,113.72,6.0]
[1644495519175,17.043,113.84,113.7,18.65]
[1644495519377,30.2296,113.84,113.72,1.94103088]
[1644495519877,30.2296,113.84,113.73,46.65319989]
[1644495520276,30.2296,113.84,113.73,52.90319989]
[1644495521078,4.393,113.84,113.73,54.83927304]
[1644495521282,4.393,113.84,113.73,120.11927304]
[1644495521479,4.394,113.86,113.73,67.48927304]
[1644495521678,4.394,113.86,113.73,68.73337133]
[1644495521881,17.043,113.87,113.73,80.67537304]
[1644495522178,18.2796071,113.87,113.74,22.863]
[1644495522378,13.1848,113.86,113.75,40.82084684]
[1644495522578,4.393,113.85,113.73,1.93607315]
[1644495522778,19.27422154,113.85,113.76,0.024]
[1644495522980,2.23122154,113.84,113.73,0.024]
[1644495523178,17.044,113.83,113.72,0.024]
[1644495523378,23.4918,113.82,113.72,0.024]
[1644495523580,13.1915,113.8,113.72,34.89347143]
[1644495523778,4.394,113.79,113.73,0.024]
[1644495523979,23.4918,113.82,113.73,0.024]
[1644495524178,23.4918,113.82,113.71,23.7998]
[1644495524379,2.23122154,113.79,113.7,1.24409829]
[1644495524580,2.23122154,113.79,113.69,13.1905]
[1644495524581,4.394,113.78,113.69,13.1905]
[1644495524781,17.044,113.78,113.67,1.24409829]
[1644495524978,19.27522154,113.78,113.66,1.24409829]
[1644495525178,19.27522154,113.78,113.67,45.47402646]
[1644495525580,13.1947,113.77,113.67,45.47402646]
[1644495525780,88.11582503,113.8,113.67,45.47402646]
[1644495525781,37.6028,113.8,113.68,1.24409829]
[1644495525979,4.394,113.79,113.69,39.64897947]
[1644495526881,6.62522154,113.79,113.69,39.64897947]
[1644495527282,19.81792154,113.79,113.69,39.64897947]
[1644495527483,17.5867,113.79,113.69,39.64897947]
[1644495527884,12.65,113.78,113.67,1.24409829]
[1644495528083,4.396,113.77,113.67,1.24409829]
[1644495528283,13.1996,113.75,113.63,1.24409829]
[1644495528483,4.397,113.74,113.62,1.24409829]
[1644495528683,1.0,113.72,113.63,1.24409829]
[1644495528984,1.0,113.72,113.64,38.11738717]
[1644495529883,3.23122154,113.72,113.64,38.11738717]
[1644495530284,4.398,113.71,113.64,38.11738717]
[1644495530486,1.0,113.72,113.64,38.11738717]
[1644495531688,4.398,113.71,113.64,38.11738717]
[1644495531888,1.0,113.72,113.64,38.11738717]
[1644495532688,1.0,113.72,113.64,38.36738717]
[1644495532889,1.0,113.72,113.64,51.56428717]
[1644495533089,1.0,113.72,113.62,13.89409829]
[1644495533090,13.65,113.72,113.62,1.24409829]
[1644495533289,15.88122154,113.72,113.59,26.10419829]
[1644495533488,15.88122154,113.72,113.59,24.8601]
[1644495533689,15.88122154,113.72,113.59,83.45960655]
[1644495533690,1.0,113.72,113.59,83.45960655]
[1644495533889,1.0,113.72,113.59,172.54370484]
[1644495534090,1.0,113.72,113.6,57.28705086]
[1644495534290,1.0,113.72,113.62,47.00972103]
[1644495534590,1.0,113.72,113.64,39.39303522]
[1644495534812,1.0,113.72,113.66,48.27355281]
[1644495535211,1.0,113.72,113.66,61.17355281]
[1644495535414,1.0,113.72,113.66,82.32085936]
[1644495536214,4.397,113.77,113.66,73.36825281]
[1644495536513,4.397,113.77,113.66,97.41365281]
[1644495536913,4.397,113.77,113.66,99.36625936]
[1644495537112,4.397,113.77,113.66,97.41365281]
[1644495537314,4.397,113.77,113.66,103.41365281]
[1644495537811,4.397,113.77,113.66,105.36625936]
[1644495538614,4.397,113.77,113.66,103.41365281]
[1644495539614,37.1774,113.78,113.67,0.024]
[1644495539816,37.1774,113.78,113.69,13.1922]
[1644495540114,37.1774,113.78,113.7,38.38686936]
[1644495540313,37.1774,113.78,113.71,0.024]
[1644495541217,23.9839,113.78,113.71,0.024]
[1644495542517,2.23122154,113.77,113.71,0.024]
[1644495542721,4.394,113.76,113.71,0.024]
[1644495542918,23.9839,113.78,113.7,38.36286936]
[1644495543118,23.9839,113.78,113.71,0.024]
[1644495543319,4.394,113.77,113.71,0.024]
[1644495543517,2.23122154,113.77,113.71,0.024]
[1644495543718,23.9839,113.78,113.71,0.024]
[1644495543925,4.394,113.77,113.71,0.024]
[1644495544418,19.81952154,113.77,113.71,0.024]
[1644495544821,17.5883,113.77,113.71,0.024]
[1644495550629,17.5883,113.77,113.69,0.024]
[1644495550830,19.81952154,113.77,113.69,0.024]
[1644495551028,23.9285,113.76,113.67,0.024]
[1644495551229,13.1974,113.74,113.67,0.024]
[1644495551430,13.1974,113.74,113.67,44.13674744]
[1644495551632,13.1974,113.74,113.68,0.024]
[1644495551829,4.397,113.73,113.68,0.024]
[1644495552030,23.9285,113.76,113.67,57.33264744]
[1644495552229,23.9285,113.76,113.68,0.024]
[1644495552831,13.1962,113.75,113.68,0.024]
[1644495553031,4.396,113.74,113.68,0.024]
[1644495553631,0.5,113.72,113.68,0.024]
[1644495553834,0.5,113.72,113.67,44.11274744]
[1644495554335,0.5,113.72,113.67,58.96535399]
[1644495554733,0.5,113.72,113.67,72.16095399]
[1644495556237,0.5,113.72,113.67,73.40505228]
[1644495556736,0.5,113.72,113.67,72.16095399]
[1644495556937,0.5,113.72,113.67,73.40505228]
[1644495557137,0.5,113.72,113.67,71.45244573]
[1644495558340,0.5,113.72,113.67,71.20244573]
[1644495558539,0.5,113.72,113.67,69.95834744]
[1644495558941,0.5,113.72,113.67,71.20244573]
[1644495560047,0.5,113.72,113.67,71.45244573]
[1644495561754,0.5,113.72,113.67,70.20834744]
[1644495562555,0.5,113.72,113.67,75.84944573]
[1644495562753,0.5,113.72,113.67,75.59944573]
[1644495562955,0.5,113.72,113.67,74.35534744]
[1644495563354,0.5,113.72,113.67,57.30834744]
[1644495564556,0.5,113.72,113.67,61.70534744]
[1644495565457,0.5,113.72,113.67,61.95534744]
[1644495565657,0.5,113.72,113.67,61.70534744]
[1644495565858,0.5,113.72,113.67,61.95534744]
[1644495566060,0.5,113.72,113.67,57.55834744]
[1644495567159,0.5,113.72,113.67,61.95534744]
[1644495568460,0.5,113.72,113.67,13.1956]
[1644495568669,0.5,113.72,113.65,0.024]
[1644495568869,0.5,113.72,113.62,1.26809829]
[1644495568870,4.398,113.71,113.62,1.26809829]
[1644495569168,4.398,113.71,113.64,0.024]
[1644495569369,0.5,113.72,113.63,39.85961189]
[1644495569571,0.5,113.72,113.64,0.024]
[1644495569769,0.5,113.72,113.65,4.398]
[1644495569969,0.5,113.72,113.66,42.22271329]
[1644495570771,0.5,113.72,113.67,13.1963]
[1644495570972,0.5,113.72,113.68,47.46773039]
[1644495571974,0.5,113.72,113.68,60.66403039]
[1644495575476,23.2,113.75,113.68,60.66403039]
[1644495575675,23.2,113.75,113.69,4.396]
[1644495575875,1.2366071,113.77,113.71,13.1908]
[1644495576085,22.7807,113.78,113.72,38.80714213]
[1644495577782,22.7807,113.78,113.74,42.03859335]
[1644495578378,24.6141,113.79,113.74,42.03859335]
[1644495579379,37.7759071,113.82,113.74,55.22759335]
[1644495579580,48.1598071,113.82,113.74,55.22759335]
[1644495579979,46.9232,113.82,113.74,55.22759335]
[1644495581281,51.3172,113.82,113.74,55.22759335]
[1644495581982,52.5538071,113.82,113.74,55.22759335]
[1644495582184,48.1598071,113.82,113.74,55.22759335]
[1644495582783,60.1109,113.82,113.74,55.22759335]
[1644495582985,4.394,113.81,113.74,55.22759335]
[1644495583884,17.5829,113.81,113.74,55.22759335]
[1644495584085,17.5829,113.81,113.73,13.1902]
[1644495584283,18.8195071,113.81,113.73,13.1902]
[1644495584483,37.33836359,113.81,113.71,24.338]
[1644495584684,24.9066071,113.8,113.71,24.338]
[1644495584883,4.394,113.79,113.71,24.338]
[1644495585088,4.394,113.79,113.72,48.69420825]
[1644495585488,17.5859,113.79,113.72,48.69420825]
[1644495588690,17.5859,113.79,113.72,61.88550825]
[1644495589690,24.9066071,113.8,113.72,61.88550825]
[1644495589890,23.67,113.8,113.72,61.88550825]
[1644495590695,24.9066071,113.8,113.72,61.88550825]
[1644495590995,17.5859,113.79,113.72,61.88550825]
[1644495591895,17.0859,113.79,113.72,61.88550825]
[1644495592093,13.1919,113.79,113.72,61.88550825]